bitfinex/quotes_BTCUSD_20240810
["timestamp","ask_amount","ask_price","bid_price","bid_amount"]
[1723301855016,0.96294437,60672.0,60671.0,0.1449162]
[1723301856296,1.04894437,60672.0,60671.0,0.1449162]
[1723301856519,1.19737108,60672.0,60671.0,0.1449162]
[1723301856698,1.21137108,60672.0,60671.0,0.1449162]
[1723301857172,1.21137108,60672.0,60671.0,0.1499162]
[1723301857655,1.04894437,60672.0,60671.0,0.1499162]
[1723301857853,0.97994437,60672.0,60671.0,0.1499162]
[1723301857968,1.05894437,60672.0,60671.0,0.1499162]
[1723301858166,1.05934621,60672.0,60671.0,0.1499162]
[1723301858842,1.04549264,60672.0,60671.0,0.1499162]
[1723301859243,0.98361798,60672.0,60671.0,0.1499162]
[1723301859479,1.04945247,60672.0,60671.0,0.1499162]
[1723301859694,1.03940395,60672.0,60671.0,0.1499162]
[1723301860578,0.87841974,60672.0,60671.0,0.1499162]
[1723301860775,1.03940207,60672.0,60671.0,0.1499162]
[1723301862382,0.87841974,60672.0,60671.0,0.1499162]
[1723301862579,1.16331612,60672.0,60671.0,0.1499162]
[1723301864444,1.03973727,60672.0,60671.0,0.1499162]
[1723301866369,1.13854956,60672.0,60671.0,0.1499162]
[1723301869505,0.97722232,60672.0,60671.0,0.1499162]
[1723301869707,1.13880013,60672.0,60671.0,0.1499162]
[1723301870120,1.13885482,60672.0,60671.0,0.1499162]
[1723301875149,1.16355546,60672.0,60671.0,0.1499162]
[1723301875349,1.13884351,60672.0,60671.0,0.1499162]
[1723301876744,1.13886368,60672.0,60671.0,0.1499162]
[1723301880294,1.04322662,60672.0,60671.0,0.1499162]
[1723301880501,1.07286232,60672.0,60671.0,0.1499162]
[1723301880662,1.1388928,60672.0,60671.0,0.1499162]
[1723301880871,1.1388934,60672.0,60671.0,0.1499162]
[1723301881568,1.16360591,60672.0,60671.0,0.1499162]
[1723301881816,1.04010213,60672.0,60671.0,0.1499162]
[1723301882134,1.13890275,60672.0,60671.0,0.1499162]
[1723301882553,1.04010213,60672.0,60671.0,0.1499162]
[1723301883029,1.04013452,60672.0,60671.0,0.1499162]
[1723301885202,1.36876944,60672.0,60671.0,0.0618162]
[1723301885406,1.36876944,60672.0,60671.0,0.0009162]
[1723301885407,1.46996944,60672.0,60671.0,0.0009162]
[1723301885652,1.63411914,60672.0,60671.0,0.0009162]
[1723301885856,1.74936894,60672.0,60671.0,0.0009162]
[1723301886455,1.60088108,60672.0,60671.0,0.0009162]
[1723301886667,1.52268108,60672.0,60671.0,0.0009162]
[1723301886831,1.2048062,60672.0,60671.0,0.0618162]
[1723301888318,1.20477794,60672.0,60671.0,0.0618162]
[1723301889362,1.3530361,60672.0,60671.0,0.0618162]
[1723301889745,1.20477794,60672.0,60671.0,0.0618162]
[1723301889982,1.04323974,60672.0,60671.0,0.0618162]
[1723301890135,1.20495559,60672.0,60671.0,0.0618162]
[1723301890539,1.04323974,60672.0,60671.0,0.0618162]
[1723301890787,1.20495462,60672.0,60671.0,0.0618162]
[1723301893987,1.04323974,60672.0,60671.0,0.0618162]
[1723301894963,1.13882732,60672.0,60671.0,0.0618162]
[1723301896500,1.10926537,60672.0,60671.0,0.0618162]
[1723301897374,1.04323974,60672.0,60671.0,0.0618162]
[1723301897548,1.13886729,60672.0,60671.0,0.0618162]
[1723301898951,1.13884038,60672.0,60671.0,0.0618162]
[1723301899371,1.19157778,60672.0,60671.0,0.0618162]
[1723301900257,1.04323974,60672.0,60671.0,0.0618162]
[1723301900813,1.19157778,60672.0,60671.0,0.0618162]
[1723301900970,1.04323974,60672.0,60671.0,0.0618162]
[1723301901185,1.19157778,60672.0,60671.0,0.0618162]
[1723301901381,1.03999032,60672.0,60671.0,0.0668162]
[1723301901591,0.97400081,60672.0,60671.0,0.1463162]
[1723301902373,0.97393712,60672.0,60671.0,0.1463162]
[1723301902571,0.94443218,60672.0,60671.0,0.1463162]
[1723301902772,1.04006521,60672.0,60671.0,0.1463162]
[1723301908121,0.94006521,60672.0,60671.0,0.1463162]
[1723301908559,0.94022621,60672.0,60671.0,0.1463162]
[1723301909113,0.94022531,60672.0,60671.0,0.1463162]
[1723301910370,0.94028572,60672.0,60671.0,0.1463162]
[1723301910611,0.13874199,60672.0,60671.0,0.1463162]
[1723301910812,0.08816997,60672.0,60671.0,0.1463162]
[1723301911010,0.03870102,60672.0,60671.0,0.1463162]
[1723301911211,0.03870102,60672.0,60671.0,0.2287272]
[1723301911569,0.014872,60672.0,60671.0,0.2287272]
[1723301911764,0.004872,60672.0,60671.0,0.39254212]
[1723301911966,0.004872,60672.0,60671.0,0.6669483]
[1723301913525,0.000872,60672.0,60671.0,0.6669483]
[1723301913960,0.002872,60672.0,60671.0,0.6669483]
[1723301914167,0.002872,60672.0,60671.0,0.55736512]
[1723301914424,0.000872,60672.0,60671.0,0.55736512]
[1723301914900,0.002872,60672.0,60671.0,0.55936512]
[1723301915308,0.002872,60672.0,60671.0,0.1483162]
[1723301916939,0.001872,60672.0,60671.0,0.1483162]
[1723301917138,0.002872,60672.0,60671.0,0.1483162]
[1723301917705,0.001872,60672.0,60671.0,0.1463162]
[1723301918091,0.001872,60672.0,60671.0,0.1473162]
[1723301918500,0.001872,60672.0,60671.0,0.1463162]
[1723301918839,0.001872,60672.0,60671.0,0.1473162]
[1723301921725,0.000872,60672.0,60671.0,0.1473162]
[1723301921934,0.000872,60672.0,60671.0,0.1463162]
[1723301922076,0.001872,60672.0,60671.0,0.1463162]
[1723301922276,0.001872,60672.0,60671.0,0.1473162]
[1723301924846,0.084282,60672.0,60671.0,0.1473162]
[1723301926039,0.001872,60672.0,60671.0,0.1473162]
[1723301929663,0.084282,60672.0,60671.0,0.1473162]
[1723301930280,0.001872,60672.0,60671.0,0.1473162]
[1723301933240,0.084282,60672.0,60671.0,0.1473162]
[1723301933425,0.10823499,60672.0,60671.0,0.1473162]
[1723301937111,0.10818358,60672.0,60671.0,0.1473162]
[1723301940444,0.43782358,60672.0,60671.0,0.1473162]
[1723301940650,0.27302608,60672.0,60671.0,0.0678162]
[1723301941001,0.249102,60672.0,60671.0,0.0678162]
[1723301941200,0.27299891,60672.0,60671.0,0.0678162]
[1723301941602,0.27299891,60672.0,60671.0,0.0668162]
[1723301941894,0.27199892,60672.0,60671.0,0.0668162]
[1723301942451,0.27299892,60672.0,60671.0,0.0668162]
[1723301942779,0.27199892,60672.0,60671.0,0.0668162]
[1723301942980,0.248102,60672.0,60671.0,0.0668162]
[1723301943212,0.27302273,60672.0,60671.0,0.0668162]
[1723301943836,0.27202273,60672.0,60671.0,0.0668162]
[1723301944070,0.27202273,60672.0,60671.0,0.0678162]
[1723301944254,0.27202273,60672.0,60671.0,0.0668162]
[1723301944730,0.27202273,60672.0,60671.0,0.0678162]
[1723301945988,0.27302273,60672.0,60671.0,0.0678162]
[1723301946620,0.248102,60672.0,60671.0,0.0678162]
[1723301946846,0.27202371,60672.0,60671.0,0.1444162]
[1723301947060,0.10720371,60672.0,60671.0,0.1444162]
[1723301947259,0.10720371,60672.0,60671.0,0.1454162]
[1723301947462,0.10820371,60672.0,60671.0,0.1454162]
[1723301950191,0.02580613,60672.0,60671.0,0.39164212]
[1723301950392,0.02580613,60672.0,60671.0,0.50055374]
[1723301950616,0.02580613,60672.0,60671.0,0.39164212]
[1723301950839,0.02580613,60672.0,60671.0,0.50055067]
[1723301950840,0.02580425,60672.0,60671.0,0.50055067]
[1723301952018,0.02574742,60672.0,60671.0,0.41813967]
[1723301952498,0.02574742,60672.0,60671.0,0.25432475]
[1723301952751,0.10815742,60672.0,60671.0,0.1454162]
[1723301953735,0.10820128,60672.0,60671.0,0.1454162]
[1723301954361,0.02579128,60672.0,60671.0,0.1454162]
[1723301955529,0.0257664,60672.0,60671.0,0.1454162]
[1723301955858,0.0257664,60672.0,60671.0,0.0678162]
[1723301956485,0.1081764,60672.0,60671.0,0.0678162]
[1723301957294,0.10816947,60672.0,60671.0,0.0678162]
[1723301961007,0.10816577,60672.0,60671.0,0.0678162]
[1723301961414,0.13376142,60672.0,60671.0,0.0678162]
[1723301961617,0.15764532,60672.0,60671.0,0.0678162]
[1723301962556,0.05135142,60672.0,60671.0,0.0678162]
[1723301962778,0.15765349,60672.0,60671.0,0.0678162]
[1723301963057,0.10817407,60672.0,60671.0,0.0678162]
[1723301963629,0.27299407,60672.0,60671.0,0.0678162]
[1723301963838,0.32248284,60672.0,60671.0,0.0678162]
[1723301964414,0.15766284,60672.0,60671.0,0.0678162]
[1723301964615,0.13377077,60672.0,60671.0,0.0678162]
[1723301964820,0.15765305,60672.0,60671.0,0.0678162]
[1723301968199,0.15770176,60672.0,60671.0,0.0678162]
[1723301968573,0.32252176,60672.0,60671.0,0.0678162]
[1723301971543,0.27303299,60672.0,60671.0,0.0678162]
[1723301971753,0.249102,60672.0,60671.0,0.0678162]
[1723301971964,0.27302612,60672.0,60671.0,0.0678162]
[1723301972330,0.10820877,60672.0,60671.0,0.0678162]
[1723301972536,0.10820877,60672.0,60671.0,0.50534432]
[1723301972537,0.001872,60672.0,60671.0,0.50534432]
[1723301973654,0.001872,60672.0,60671.0,0.39634212]
[1723301973823,0.001872,60672.0,60671.0,0.50502907]
[1723301978005,0.001872,60672.0,60671.0,0.99949907]
[1723301978561,0.001872,60672.0,60671.0,1.16432207]
[1723301978846,0.001872,60672.0,60671.0,0.99949907]
[1723301979070,0.001872,60672.0,60671.0,0.89081212]
[1723301979227,0.001872,60672.0,60671.0,0.99918373]
[1723301979595,0.001872,60672.0,60671.0,1.32882973]
[1723301979965,0.001872,60672.0,60671.0,1.24300494]
[1723301980574,0.001872,60672.0,60671.0,1.40782794]
[1723301981353,0.000872,60672.0,60671.0,1.57265094]
[1723301981554,0.000872,60672.0,60671.0,1.41782794]
[1723301981757,0.001872,60672.0,60671.0,1.58165094]
[1723301982086,0.001872,60672.0,60671.0,1.58365094]
[1723301982394,0.001872,60672.0,60671.0,1.58465094]
[1723301982589,0.001872,60672.0,60671.0,1.58394186]
[1723301982590,0.000872,60672.0,60671.0,1.58394186]
[1723301982790,0.001872,60672.0,60671.0,1.41911886]
[1723301982993,0.001872,60672.0,60671.0,1.41911853]
[1723301983167,0.001872,60672.0,60671.0,1.58394153]
[1723301983897,0.001872,60672.0,60671.0,1.41911853]
[1723301984457,0.000872,60672.0,60671.0,1.41911853]
[1723301984871,0.002872,60672.0,60671.0,1.60694153]
[1723301985071,0.002872,60672.0,60671.0,1.44211853]
[1723301985309,0.002872,60672.0,60671.0,1.60694153]
[1723301985519,0.002872,60672.0,60671.0,1.44211853]
[1723301985658,0.002872,60672.0,60671.0,1.60694153]
[1723301986302,0.002872,60672.0,60671.0,1.44211853]
[1723301986599,0.002872,60672.0,60671.0,1.44011853]
[1723301988715,0.002872,60672.0,60671.0,1.43011853]
[1723301989705,0.002872,60672.0,60671.0,1.42985346]
[1723301993260,0.002872,60672.0,60671.0,1.43004064]
[1723301993682,0.002872,60672.0,60671.0,1.43004065]
[1723301994885,0.002872,60672.0,60671.0,1.4300887]
[1723301996890,0.002872,60672.0,60671.0,1.43027106]
[1723301997112,0.002872,60672.0,60671.0,1.35127106]
[1723302001673,0.002872,60672.0,60671.0,1.43027106]
[1723302002070,0.001872,60672.0,60671.0,1.41627106]
[1723302002589,0.001872,60672.0,60671.0,1.42627106]
[1723302002590,0.002872,60672.0,60671.0,1.42627106]
[1723302002794,0.001872,60672.0,60671.0,1.41727106]
[1723302003157,0.001872,60672.0,60671.0,1.41127106]
[1723302003359,0.002872,60672.0,60671.0,1.42127106]
[1723302003581,0.001872,60672.0,60671.0,1.41737179]
[1723302003982,0.002872,60672.0,60671.0,1.31145812]
[1723302004170,0.002872,60672.0,60671.0,1.4203733]
[1723302005147,0.001872,60672.0,60671.0,1.4103733]
[1723302005392,0.001872,60672.0,60671.0,1.41030782]
[1723302005594,0.002872,60672.0,60671.0,1.41930782]
[1723302006151,0.002872,60672.0,60671.0,1.42930782]
[1723302006888,0.002872,60672.0,60671.0,1.42030782]
[1723302007112,0.001872,60672.0,60671.0,1.42030782]
[1723302007635,0.000872,60672.0,60671.0,1.41730782]
[1723302008040,0.001872,60672.0,60671.0,1.42630782]
[1723302008500,0.001872,60672.0,60671.0,1.41630782]
[1723302008816,0.001872,60672.0,60671.0,1.42530782]
[1723302008817,0.002872,60672.0,60671.0,1.42530782]
[1723302009614,0.002872,60672.0,60671.0,1.34630782]
[1723302009821,0.002872,60672.0,60671.0,1.42530782]
[1723302011407,0.002872,60672.0,60671.0,1.42509763]
[1723302014330,0.002872,60672.0,60671.0,1.31645812]
[1723302014531,0.002872,60672.0,60671.0,1.42528236]
[1723302017972,0.002872,60672.0,60671.0,1.42527037]
[1723302018400,0.002872,60672.0,60671.0,1.47457239]
[1723302018569,0.002872,60672.0,60671.0,1.47460631]
[1723302021469,0.002872,60672.0,60671.0,1.47446172]
[1723302022222,0.002872,60672.0,60671.0,1.47446976]
[1723302022875,0.002872,60672.0,60671.0,1.39046204]
[1723302023076,0.002872,60672.0,60671.0,1.31645812]
[1723302023479,0.002872,60672.0,60671.0,1.60000989]
[1723302023653,0.002872,60672.0,60671.0,1.67402489]
[1723302023829,0.002872,60672.0,60671.0,1.50919544]
[1723302024520,0.002872,60672.0,60671.0,1.67401844]
[1723302024725,0.002872,60672.0,60671.0,1.40046667]
[1723302024947,0.002872,60672.0,60671.0,1.56528967]
[1723302025762,0.002872,60672.0,60671.0,1.49128112]
[1723302026103,0.002872,60672.0,60671.0,1.54062222]
[1723302027292,0.002872,60672.0,60671.0,1.56528967]
[1723302027448,0.002872,60672.0,60671.0,1.76263236]
[1723302027649,0.002872,60672.0,60671.0,1.68862381]
[1723302028858,0.002872,60672.0,60671.0,1.57971157]
[1723302029075,0.002872,60672.0,60671.0,1.68874582]
[1723302029417,0.002872,60672.0,60671.0,1.51128112]
[1723302029534,0.002872,60672.0,60671.0,1.68875105]
[1723302030775,0.002872,60672.0,60671.0,1.68872036]
[1723302031177,0.002872,60672.0,60671.0,1.52389736]
[1723302032039,0.002872,60672.0,60671.0,1.50389736]
[1723302032455,0.002872,60672.0,60671.0,1.50381972]
[1723302032843,0.002872,60672.0,60671.0,1.50391816]
[1723302034435,0.002872,60672.0,60671.0,1.66874116]
[1723302034636,0.002872,60672.0,60671.0,1.49128112]
[1723302034865,0.002872,60672.0,60671.0,1.66876902]
[1723302035278,0.002872,60672.0,60671.0,1.67502035]
[1723302035483,0.002872,60672.0,60671.0,1.69502035]
[1723302035697,0.002872,60672.0,60671.0,1.85984335]
[1723302035851,0.002872,60672.0,60671.0,1.86184335]
[1723302036055,0.002872,60672.0,60671.0,1.7935378]
[1723302036265,0.002872,60672.0,60671.0,1.85996753]
[1723302036969,0.002872,60672.0,60671.0,1.96065005]
[1723302037169,0.002872,60672.0,60671.0,2.26887793]
[1723302037503,0.002872,60672.0,60671.0,2.40486696]
[1723302037830,0.002872,60672.0,60671.0,2.39498929]
[1723302038033,0.001872,60672.0,60671.0,2.36358573]
[1723302038219,0.000872,60672.0,60671.0,2.35458573]
[1723302038421,0.000872,60672.0,60671.0,2.36445723]
[1723302038629,0.002872,60672.0,60671.0,2.37945723]
[1723302038832,0.002872,60672.0,60671.0,2.36958573]
[1723302039179,0.001872,60672.0,60671.0,2.36058573]
[1723302039393,0.002872,60672.0,60671.0,2.34758573]
[1723302039825,0.002872,60672.0,60671.0,2.7309751]
[1723302040036,0.002872,60672.0,60671.0,2.73173192]
[1723302040251,0.002872,60672.0,60671.0,2.53516555]
[1723302040830,0.001872,60672.0,60671.0,2.52916555]
[1723302041207,0.000872,60672.0,60671.0,2.52016555]
[1723302041613,0.001872,60672.0,60671.0,2.54816555]
[1723302041814,0.000872,60672.0,60671.0,2.53416555]
[1723302042216,0.001872,60672.0,60671.0,2.14566833]
[1723302042503,0.001872,60672.0,60671.0,2.01168707]
[1723302042673,0.000872,60672.0,60671.0,2.03662362]
[1723302042920,0.000872,60672.0,60671.0,1.67410412]
[1723302043093,0.001872,60672.0,60671.0,1.83915802]
[1723302043300,0.001872,60672.0,60671.0,1.93763316]
[1723302043703,0.001872,60672.0,60671.0,2.03763316]
[1723302044674,0.001872,60672.0,60671.0,2.02363316]
[1723302044869,0.000872,60672.0,60671.0,2.00963316]
[1723302045072,0.001872,60672.0,60671.0,2.02363316]
[1723302045275,0.002872,60672.0,60671.0,2.03763316]
[1723302045473,0.002872,60672.0,60671.0,2.02363562]
[1723302045797,0.000872,60672.0,60671.0,2.00963562]
[1723302045979,0.001872,60672.0,60671.0,2.02363562]
[1723302046178,0.002872,60672.0,60671.0,2.03763562]
[1723302046614,0.002872,60672.0,60671.0,2.03762222]
[1723302049438,0.002872,60672.0,60671.0,2.05962222]
[1723302049643,0.002872,60672.0,60671.0,2.03762222]
[1723302049851,0.002872,60672.0,60671.0,1.88657926]
[1723302050047,0.002872,60672.0,60671.0,2.05987412]
[1723302050450,0.002872,60672.0,60671.0,1.88657926]
[1723302050821,0.002872,60672.0,60671.0,2.12622153]
[1723302051099,0.002872,60672.0,60671.0,2.1492213]
[1723302052921,0.002872,60672.0,60671.0,2.24771053]
[1723302053551,0.002872,60672.0,60671.0,2.24802412]
[1723302054668,0.002872,60672.0,60671.0,2.08320112]
[1723302054868,0.002872,60672.0,60671.0,2.05820112]
[1723302055014,0.002872,60672.0,60671.0,1.96171189]
[1723302055647,0.002872,60672.0,60671.0,2.06019845]
[1723302055883,0.002872,60672.0,60671.0,1.97789845]
[1723302056089,0.002872,60672.0,60671.0,1.87741189]
[1723302056269,0.002872,60672.0,60671.0,1.85741189]
[1723302056465,0.002872,60672.0,60671.0,1.86111189]
[1723302056662,0.002872,60672.0,60671.0,1.93498244]
[1723302057086,0.002872,60672.0,60671.0,1.93506282]
[1723302057444,0.002872,60672.0,60671.0,1.69558135]
[1723302057652,0.002872,60672.0,60671.0,1.93506645]
[1723302058885,0.002872,60672.0,60671.0,1.93506647]
[1723302059424,0.002872,60672.0,60671.0,1.71759592]
[1723302059625,0.002872,60672.0,60671.0,1.87047298]
[1723302059965,0.002872,60672.0,60671.0,1.79659592]
[1723302060582,0.002872,60672.0,60671.0,1.87014525]
[1723302060790,0.002872,60672.0,60671.0,1.79627065]
[1723302060991,0.002872,60672.0,60671.0,1.45808112]
[1723302061207,0.002872,60672.0,60671.0,1.79573714]
[1723302062455,0.002872,60672.0,60671.0,1.62467632]
[1723302062865,0.002872,60672.0,60671.0,1.8696312]
[1723302063317,0.002872,60672.0,60671.0,1.79623624]
[1723302064253,0.002872,60672.0,60671.0,1.87012529]
[1723302066746,0.002872,60672.0,60671.0,1.86991804]
[1723302070203,0.002872,60672.0,60671.0,1.53197017]
[1723302070373,0.002872,60672.0,60671.0,1.87004186]
[1723302070575,0.002872,60672.0,60671.0,1.80161561]
[1723302070802,0.002872,60672.0,60671.0,1.87004186]
[1723302071337,0.002872,60672.0,60671.0,1.79615281]
[1723302072018,0.002872,60672.0,60671.0,1.87011175]
[1723302072176,0.002872,60672.0,60671.0,1.87011492]
[1723302073952,0.002872,60672.0,60671.0,1.87002809]
[1723302077231,0.002872,60672.0,60671.0,1.53204006]
[1723302077434,0.002872,60672.0,60671.0,1.8700562]
[1723302080744,0.002872,60672.0,60671.0,1.53204006]
[1723302081019,0.002872,60672.0,60671.0,1.87029779]
[1723302081393,0.002872,60672.0,60671.0,1.87029832]
[1723302082347,0.002872,60672.0,60671.0,1.87028311]
[1723302082551,0.002872,60672.0,60671.0,1.86999592]
[1723302082952,0.002872,60672.0,60671.0,1.86999596]
[1723302084458,0.002872,60672.0,60671.0,1.59762485]
[1723302084748,0.002872,60672.0,60671.0,1.9556475]
[1723302085400,0.002872,60672.0,60671.0,1.8817015]
[1723302086371,0.002872,60672.0,60671.0,1.98029314]
[1723302086741,0.002872,60672.0,60671.0,1.98229314]
[1723302087127,0.002872,60672.0,60671.0,1.98232763]
[1723302087311,0.002872,60672.0,60671.0,1.8837015]
[1723302087512,0.002872,60672.0,60671.0,1.88390179]
[1723302087715,0.002872,60672.0,60671.0,1.91960859]
[1723302087867,0.002872,60672.0,60671.0,1.79630179]
[1723302088072,0.002872,60672.0,60671.0,1.45808112]
[1723302088320,0.002872,60672.0,60671.0,1.69915384]
[1723302090110,0.145572,60672.0,60671.0,0.79085375]
[1723302090277,0.145572,60672.0,60671.0,0.79094224]
[1723302090471,0.145572,60672.0,60671.0,0.69220112]
[1723302090874,0.145572,60672.0,60671.0,0.77461212]
[1723302091070,0.16821534,60672.0,60671.0,0.76061212]
[1723302091294,0.143572,60672.0,60671.0,0.66420112]
[1723302091496,0.144572,60672.0,60671.0,0.67820112]
[1723302091694,0.145572,60672.0,60671.0,0.5273862]
[1723302091900,0.4954246,60672.0,60671.0,0.5273862]
[1723302092314,0.4944246,60672.0,60671.0,0.5143862]
[1723302092502,0.49442459,60672.0,60671.0,0.5143862]
[1723302093109,0.49342459,60672.0,60671.0,0.5003862]
[1723302093311,0.49342459,60672.0,60671.0,0.5103862]
[1723302093534,0.41542459,60672.0,60671.0,0.5103862]
[1723302094325,0.41642459,60672.0,60671.0,0.5233862]
[1723302094554,0.25160459,60672.0,60671.0,0.5233862]
[1723302095127,0.16919459,60672.0,60671.0,0.68720112]
[1723302095325,0.16919459,60672.0,60671.0,0.76961212]
[1723302095505,0.10599459,60672.0,60671.0,0.68720112]
[1723302095706,0.082372,60672.0,60671.0,0.68720112]
[1723302099239,0.310392,60672.0,60671.0,0.5233862]
[1723302099439,0.557622,60672.0,60671.0,0.5233862]
[1723302100957,0.636622,60672.0,60671.0,0.5233862]
[1723302101475,0.66031288,60672.0,60671.0,0.5233862]
[1723302101880,0.636622,60672.0,60671.0,0.5233862]
[1723302102135,0.6603159,60672.0,60671.0,0.5233862]
[1723302102613,0.66031594,60672.0,60671.0,0.5233862]
[1723302104357,0.66031594,60672.0,60671.0,0.5133862]
[1723302104358,0.65931594,60672.0,60671.0,0.5133862]
[1723302104716,0.65931594,60672.0,60671.0,0.5163862]
[1723302105121,0.65931594,60672.0,60671.0,0.5133862]
[1723302105525,0.65931594,60672.0,60671.0,0.5163862]
[1723302105698,0.82313594,60672.0,60671.0,0.5033862]
[1723302106297,0.800442,60672.0,60671.0,0.5103862]
[1723302106469,0.82415418,60672.0,60671.0,0.5103862]
[1723302108403,0.83412386,60672.0,60671.0,0.5103862]
[1723302109307,0.81041168,60672.0,60671.0,0.5103862]
[1723302109512,0.83405395,60672.0,60671.0,0.5103862]
[1723302109952,0.83405423,60672.0,60671.0,0.5103862]
[1723302113597,0.83405164,60672.0,60671.0,0.5103862]
[1723302114191,0.94048663,60672.0,60671.0,0.5103862]
[1723302114674,0.83403251,60672.0,60671.0,0.5103862]
[1723302115227,0.9405274,60672.0,60671.0,0.5103862]
[1723302115456,1.7753474,60672.0,60671.0,0.5053862]
[1723302115653,1.92741167,60672.0,60671.0,0.5053862]
[1723302116280,1.92741167,60672.0,60671.0,0.4983862]
[1723302116281,1.92641167,60672.0,60671.0,0.4983862]
[1723302116581,1.92641167,60672.0,60671.0,0.4953862]
[1723302117166,1.97874396,60672.0,60671.0,0.4953862]
[1723302117398,1.97865194,60672.0,60671.0,0.4953862]
[1723302117714,1.97565194,60672.0,60671.0,0.4953862]
[1723302118174,1.92631965,60672.0,60671.0,0.4953862]
[1723302118539,2.00031808,60672.0,60671.0,0.4953862]
[1723302118945,2.164133,60672.0,60671.0,0.4953862]
[1723302119141,2.187133,60672.0,60671.0,0.4953862]
[1723302119375,2.1870158,60672.0,60671.0,0.4953862]
[1723302119576,2.11313457,60672.0,60671.0,0.4953862]
[1723302119810,2.1870158,60672.0,60671.0,0.4953862]
[1723302120208,2.1900158,60672.0,60671.0,0.4953862]
[1723302120378,2.11613457,60672.0,60671.0,0.4953862]
[1723302120581,2.1900158,60672.0,60671.0,0.4953862]
[1723302120783,2.18982684,60672.0,60671.0,0.4953862]
[1723302121373,2.11594561,60672.0,60671.0,0.4953862]
[1723302121793,2.18982684,60672.0,60671.0,0.4953862]
[1723302122607,1.53445391,60672.0,60671.0,0.4953862]
[1723302122825,2.24884959,60672.0,60671.0,0.4953862]
[1723302123001,1.35698086,60672.0,60671.0,0.4953862]
[1723302123203,1.43598086,60672.0,60671.0,0.4953862]
[1723302123427,1.37034129,60672.0,60671.0,0.4953862]
[1723302123684,1.43603163,60672.0,60671.0,0.4953862]
[1723302124281,1.43603137,60672.0,60671.0,0.4953862]
[1723302124640,1.48527765,60672.0,60671.0,0.4953862]
[1723302124822,1.43603137,60672.0,60671.0,0.4953862]
[1723302125024,1.48527765,60672.0,60671.0,0.4953862]
[1723302125425,1.48527765,60672.0,60671.0,0.4942442]
[1723302125626,2.14527765,60672.0,60671.0,0.4942442]
[1723302125828,2.09603137,60672.0,60671.0,0.4942442]
[1723302126239,2.14527765,60672.0,60671.0,0.4942442]
[1723302127524,2.06627765,60672.0,60671.0,0.4942442]
[1723302127716,2.14527765,60672.0,60671.0,0.4942442]
[1723302128531,2.09592524,60672.0,60671.0,0.4942442]
[1723302129493,2.16979869,60672.0,60671.0,0.4942442]
[1723302129694,2.09592524,60672.0,60671.0,0.4942442]
[1723302130482,2.19443354,60672.0,60671.0,0.4942442]
[1723302131058,2.1947176,60672.0,60671.0,0.4942442]
[1723302131265,2.2047176,60672.0,60671.0,0.4942442]
[1723302131577,2.1947176,60672.0,60671.0,0.4942442]
[1723302132162,2.54875783,60672.0,60671.0,0.4942442]
[1723302132376,2.59168721,60672.0,60671.0,0.42554454]
[1723302132579,2.5916393,60672.0,60671.0,0.42554454]
[1723302133668,2.72954642,60672.0,60671.0,0.42554454]
[1723302134007,2.58439672,60672.0,60671.0,0.42654454]
[1723302134168,2.2950293,60672.0,60671.0,0.42654454]
[1723302134367,2.2830293,60672.0,60671.0,0.42554454]
[1723302134758,2.28301873,60672.0,60671.0,0.41134554]
[1723302134937,2.1328666,60672.0,60671.0,0.41334554]
[1723302135145,2.44647717,60672.0,60671.0,0.41334554]
[1723302135317,2.43647717,60672.0,60671.0,0.40425964]
[1723302135520,2.43647717,60672.0,60671.0,0.40325964]
[1723302135521,2.42347717,60672.0,60671.0,0.40325964]
[1723302135725,2.58138429,60672.0,60671.0,0.40325964]
[1723302136043,2.58538429,60672.0,60671.0,0.40425964]
[1723302136244,2.59538429,60672.0,60671.0,0.40425964]
[1723302136400,2.68772311,60672.0,60671.0,0.40425964]
[1723302136807,2.58547807,60672.0,60671.0,0.40425964]
[1723302137017,2.43747717,60672.0,60671.0,0.40425964]
[1723302137240,2.44747717,60672.0,60671.0,0.40425964]
[1723302137510,2.30601949,60672.0,60671.0,0.35842488]
[1723302138139,2.30601949,60672.0,60663.0,0.0009141]
[1723302138140,0.167,60664.0,60663.0,0.0009141]
[1723302138273,1.26176438,60664.0,60663.0,0.0009141]
[1723302138476,1.40381427,60664.0,60663.0,0.0009141]
[1723302138680,2.16860327,60664.0,60663.0,0.0009141]
[1723302139216,2.33344527,60664.0,60663.0,0.0009141]
[1723302139415,2.45677349,60664.0,60663.0,0.0009141]
[1723302139580,2.33344527,60664.0,60663.0,0.0009141]
[1723302139776,2.62090677,60664.0,60663.0,0.0009141]
[1723302139987,2.62090677,60664.0,60654.0,0.009141]
[1723302139988,0.087433,60655.0,60654.0,0.009141]
[1723302140186,0.95208292,60655.0,60654.0,0.009141]
[1723302140402,1.4557876,60655.0,60654.0,0.009141]
[1723302140779,1.4787876,60655.0,60654.0,0.009141]
[1723302141319,1.40481492,60655.0,60654.0,0.009141]
[1723302141520,1.47877527,60655.0,60654.0,0.009141]
[1723302141922,1.64292497,60655.0,60654.0,0.009141]
[1723302142150,1.47877527,60655.0,60654.0,0.009141]
[1723302142523,1.41581492,60655.0,60654.0,0.001]
[1723302142724,1.40581492,60655.0,60654.0,0.001]
[1723302143130,1.41581492,60655.0,60654.0,0.001]
[1723302143324,1.50378311,60655.0,60654.0,0.001]
[1723302143529,1.49378311,60655.0,60654.0,0.001]
[1723302143743,1.47978311,60655.0,60654.0,0.001]
[1723302144010,2.19978311,60655.0,60654.0,0.001]
[1723302144214,2.26456281,60655.0,60654.0,0.001]
[1723302144420,2.46371393,60655.0,60654.0,0.001]
[1723302144546,0.845937,60652.0,60639.0,0.0716]
[1723302144746,1.99485492,60652.0,60639.0,0.0716]
[1723302144984,2.25834161,60652.0,60639.0,0.0716]
[1723302145193,2.42365744,60652.0,60639.0,0.0716]
[1723302145405,2.16017075,60652.0,60639.0,0.0716]
[1723302145603,2.05283124,60652.0,60640.0,0.005]
[1723302145808,2.16071544,60652.0,60640.0,0.005]
[1723302146146,2.07650887,60652.0,60640.0,0.005]
[1723302146343,2.08650887,60652.0,60640.0,0.005]
[1723302146547,2.06650887,60652.0,60640.0,0.005]
[1723302147057,2.08650887,60652.0,60640.0,0.005]
[1723302147354,2.06650887,60652.0,60640.0,0.005]
[1723302147492,2.23065857,60652.0,60640.0,0.005]
[1723302147692,2.22672895,60652.0,60640.0,0.005]
[1723302147895,2.15675509,60652.0,60642.0,0.0818]
[1723302148108,2.17675509,60652.0,60642.0,0.0818]
[1723302148312,2.27530135,60652.0,60642.0,0.0818]
[1723302148516,2.14345551,60652.0,60642.0,0.0818]
[1723302148719,2.14345551,60652.0,60651.0,0.0010141]